fUST/lending_fUST_20250628
["ID","MTS","AMOUNT","RATE_DAILY","PERIOD"]
[368292892,1751095853766,-460.0,0.00021095,2]
[368292893,1751095853776,-561.07,0.00021095,2]
[368292894,1751095853785,-889.36,0.00021095,2]
[368292895,1751095853795,-1671.16,0.00021095,2]
[368292896,1751095853804,-4251.24,0.00021095,2]
[368292897,1751095853814,-460.0,0.00021095,2]
[368292898,1751095853823,-460.0,0.00021095,2]
[368292899,1751095853832,-494.68,0.00021095,2]
[368292900,1751095853842,-460.0,0.00021095,2]
[368292901,1751095853851,-460.0,0.00021095,2]
[368292902,1751095853860,-2148.79,0.00021095,2]
[368292903,1751095853870,-555.43,0.00021095,2]
[368292904,1751095853879,-1792.02,0.00021095,2]
[368292905,1751095853889,-976.63,0.00021095,2]
[368292906,1751095853898,-721.4,0.00021095,2]
[368292907,1751095853907,-460.0,0.00021095,2]
[368292908,1751095853916,-591.41,0.00021095,2]
[368292909,1751095853925,-460.0,0.00021095,2]
[368292910,1751095853934,-662.78,0.00021095,2]
[368292911,1751095853944,-779.4,0.00021095,2]
[368292912,1751095853953,-5559.5,0.00021095,2]
[368292913,1751095853962,-460.0,0.00021095,2]
[368292914,1751095853972,-460.0,0.00021095,2]
[368292915,1751095853981,-507.32,0.00021095,2]
[368292916,1751095853991,-460.0,0.00021095,2]
[368292917,1751095854000,-1085.26,0.00021095,2]
[368292918,1751095854009,-2062.99,0.00021095,2]
[368292919,1751095854019,-460.0,0.00021095,2]
[368292920,1751095854029,-1700.85,0.00021095,2]
[368292921,1751095854038,-177.5104021,0.00021096,2]
[368292922,1751095854047,-159.266168,0.00021096,2]
[368292923,1751095854056,-177.5104021,0.00021096,2]
[368292924,1751095854066,-159.266168,0.00021096,2]
[368292925,1751095854075,-177.5104021,0.00021096,2]
[368292926,1751095854085,-159.266168,0.00021096,2]
[368292927,1751095854094,-159.266168,0.00021096,2]
[368292928,1751095854104,-177.5104021,0.00021096,2]
[368292929,1751095854114,-177.5104021,0.00021096,2]
[368292930,1751095854124,-159.266168,0.00021096,2]
[368292931,1751095854134,-171.9749283,0.00021096,2]
[368292932,1751095854143,-318.4256084,0.00021096,2]
[368292933,1751095854153,-9950.03549666,0.00021107,4]
[368292934,1751095854162,-151.0,0.00021107,2]
[368292935,1751095854176,-259.443725,0.00021107,2]
[368292936,1751095854185,-177.5104021,0.00021205,2]
[368292937,1751095854195,-500.0,0.00021258,2]
[368292938,1751095854205,-500.0,0.00021258,2]
[368292939,1751095854214,-563.71744148,0.00021258,2]
[368292940,1751095854224,-500.0,0.00021258,2]
[368292941,1751095854234,-500.0,0.00021258,2]
[368292942,1751095854243,-600.0,0.00021258,2]
[368292943,1751095854253,-500.0,0.00021258,2]
[368292944,1751095854263,-500.0,0.00021258,2]
[368292945,1751095854272,-500.0,0.00021258,2]
[368292946,1751095854281,-500.0,0.00021258,2]
[368292947,1751095854291,-501.47258747,0.00021258,2]
[368292948,1751095854300,-500.0,0.00021258,2]
[368292949,1751095854309,-500.0,0.00021258,2]
[368292950,1751095854319,-500.0,0.00021258,2]
[368292951,1751095854328,-500.0,0.00021258,2]
[368292952,1751095854348,-153.0,0.0002126,2]
[368292953,1751095854359,-153.0,0.0002126,2]
[368292954,1751095854370,-153.0,0.0002126,2]
[368292955,1751095854380,-153.0,0.0002126,2]
[368292956,1751095854390,-153.0,0.0002126,2]
[368292957,1751095854400,-153.0,0.0002126,2]
[368292958,1751095854411,-153.0,0.0002126,2]
[368292959,1751095854421,-153.0,0.0002126,2]
[368292960,1751095854431,-212.9,0.00021264,4]
[368292961,1751095854440,-5000.0,0.00021286,2]
[368292962,1751095854450,-1000.0,0.00021298,2]
[368292963,1751095854460,-151.0,0.000213,4]
[368292964,1751095854470,-163.0,0.000213,4]
[368292965,1751095854479,-171.23481369,0.000213,5]
[368292966,1751095854489,-2000.0,0.00021337,2]
[368292967,1751095854499,-9950.03549666,0.00021348,5]
[368292968,1751095854508,-460.0,0.00021369,2]
[368292969,1751095854517,-519.7,0.00021369,2]
[368292970,1751095854526,-460.0,0.00021369,2]
[368292971,1751095854535,-784.51,0.00021369,2]
[368292972,1751095854545,-476.45581029,0.00021369,2]
[368292973,1751095854555,-460.0,0.00021369,2]
[368292974,1751095854564,-478.61,0.00021369,2]
[368292975,1751095854574,-151.0,0.00021369,2]
[368292976,1751095854583,-151.0,0.00021369,2]
[368292977,1751095854592,-797.78,0.00021369,2]
[368292978,1751095854602,-879.38,0.00021369,2]
[368292979,1751095854612,-460.0,0.00021369,2]
[368292980,1751095854622,-828.22,0.00021369,2]
[368292981,1751095854632,-1728.86,0.00021369,2]
[368292982,1751095854641,-460.0,0.00021369,2]
[368292983,1751095854650,-597.64,0.00021369,2]
[368292984,1751095854660,-460.0,0.00021369,2]
[368292985,1751095854670,-2614.1,0.00021369,2]
[368292986,1751095854679,-151.0,0.00021369,2]
[368292987,1751095854688,-151.0,0.00021369,2]
[368292988,1751095854698,-603.09,0.00021369,2]
[368292989,1751095854707,-639.64,0.00021369,2]
[368292990,1751095854717,-202.063746,0.00021369,2]
[368292991,1751095854727,-460.0,0.00021369,2]
[368292992,1751095854736,-3270.51,0.00021369,2]
[368292993,1751095854746,-313.12360558,0.00021369,2]
[368292994,1751095854755,-763.98,0.00021369,2]
[368292995,1751095854764,-837.56,0.00021369,2]
[368292996,1751095854774,-460.0,0.00021369,2]
[368292997,1751095854783,-460.0,0.00021369,2]
[368292998,1751095854792,-460.0,0.00021369,2]
[368292999,1751095854802,-460.0,0.00021369,2]
[368293000,1751095854811,-604.17851885,0.00021369,2]
[368293001,1751095854820,-1769.95,0.00021369,2]
[368293002,1751095854830,-489.73,0.00021369,2]
[368293003,1751095854839,-621.53,0.00021369,2]
[368293004,1751095854849,-460.0,0.00021369,2]
[368293005,1751095854858,-460.0,0.00021369,2]
[368293006,1751095854868,-2448.04,0.00021369,2]
[368293007,1751095854877,-460.0,0.00021369,2]
[368293008,1751095854886,-610.74,0.00021369,2]
[368293009,1751095854896,-460.0,0.00021369,2]
[368293010,1751095854906,-1113.91,0.00021369,2]
[368293011,1751095854916,-2572.05,0.00021369,2]
[368293012,1751095854925,-551.12,0.00021369,2]
[368293013,1751095854936,-2857.57,0.00021369,2]
[368293014,1751095854945,-1213.77,0.00021369,2]
[368293015,1751095854958,-3407.39,0.00021369,2]
[368293016,1751095854968,-460.0,0.00021369,2]
[368293017,1751095854978,-151.0,0.00021369,2]
[368293018,1751095854987,-489.27,0.00021369,2]
[368293019,1751095854997,-460.0,0.00021369,2]
[368293020,1751095855007,-619.01,0.00021369,2]
[368293021,1751095855016,-538.85,0.00021369,2]
[368293022,1751095855027,-460.0,0.00021369,2]
[368293023,1751095855036,-1857.21,0.00021369,2]
[368293024,1751095855046,-460.0,0.00021369,2]
[368293025,1751095855056,-2083.66,0.00021369,2]
[368293026,1751095855065,-267.33238559,0.00021369,2]
[368293027,1751095855075,-561.07,0.00021369,2]
[368293028,1751095855086,-460.0,0.00021369,2]
[368293029,1751095855096,-151.0,0.00021369,2]
[368293030,1751095855106,-889.36,0.00021369,2]
[368293031,1751095855116,-151.0,0.00021369,2]
[368293032,1751095855126,-1671.16,0.00021369,2]
[368293033,1751095855136,-4251.24,0.00021369,2]
[368293034,1751095855147,-460.0,0.00021369,2]
[368293035,1751095855157,-460.0,0.00021369,2]
[368293036,1751095855167,-494.68,0.00021369,2]
[368293037,1751095855178,-460.0,0.00021369,2]
[368293038,1751095855188,-460.0,0.00021369,2]
[368293039,1751095855197,-2148.79,0.00021369,2]
[368293040,1751095855207,-555.43,0.00021369,2]
[368293041,1751095855217,-1792.02,0.00021369,2]
[368293042,1751095855226,-976.63,0.00021369,2]
[368293043,1751095855236,-721.4,0.00021369,2]
[368293044,1751095855245,-460.0,0.00021369,2]
[368293045,1751095855256,-591.41,0.00021369,2]
[368293046,1751095855265,-460.0,0.00021369,2]
[368293047,1751095855275,-662.78,0.00021369,2]
[368293048,1751095855284,-779.4,0.00021369,2]
[368293049,1751095855294,-5559.5,0.00021369,2]
[368293050,1751095855304,-460.0,0.00021369,2]
[368293051,1751095855313,-460.0,0.00021369,2]
[368293052,1751095855323,-507.32,0.00021369,2]
[368293053,1751095855333,-427.84153915,0.00021369,2]
[368293054,1751095855342,-1085.26,0.00021369,2]
[368293055,1751095855351,-155.6612,0.00021369,2]
[368293056,1751095855361,-2062.99,0.00021369,2]
[368293057,1751095855371,-460.0,0.00021369,2]
[368293058,1751095855380,-151.0,0.00021369,2]
[368293059,1751095855390,-1700.85,0.00021369,2]
[368293060,1751095855400,-472.98,0.00021445,2]
[368293061,1751095855409,-212.9,0.00021501,4]
[368293062,1751095855420,-232004.77803,0.00021511,2]
[368293063,1751095855430,-500.0,0.00021512,2]
[368293064,1751095855440,-366.1706175,0.00021534,2]
[368293065,1751095855450,-151.0,0.00021538,2]
[368293066,1751095855459,-151.0,0.00021538,2]
[368293067,1751095855469,-151.0,0.00021538,2]
[368293068,1751095855478,-151.0,0.00021538,2]
[368293069,1751095855488,-151.0,0.00021538,2]
[368293070,1751095855497,-500.0,0.00021538,2]
[368293071,1751095855508,-413.815039,0.0002156,4]
[368293072,1751095855521,-500.0,0.00021574,2]
[368293073,1751095855530,-500.0,0.00021575,2]
[368293074,1751095855540,-500.0,0.00021581,2]
[368293075,1751095855550,-502.89520889,0.00021582,2]
[368293076,1751095855559,-151.0,0.00021588,2]
[368293077,1751095855569,-9950.03549666,0.0002159,5]
[368293078,1751095855578,-151.0,0.000216,3]
[368293079,1751095855588,-160.0,0.00021612,4]
[368293080,1751095855598,-7491.30838881,0.00021643,2]
[368293081,1751095855607,-460.0,0.00021643,2]
[368293082,1751095855616,-519.7,0.00021643,2]
[368293083,1751095855626,-460.0,0.00021643,2]
[368293084,1751095855636,-156.682528,0.00021643,2]
[368293085,1751095855646,-784.51,0.00021643,2]
[368293086,1751095855656,-151.0,0.00021643,2]
[368293087,1751095855666,-151.0,0.00021643,2]
[368293088,1751095855676,-151.0,0.00021643,2]
[368293089,1751095855685,-460.0,0.00021643,2]
[368293090,1751095855695,-151.0,0.00021643,2]
[368293091,1751095855705,-151.0,0.00021643,2]
[368293092,1751095855714,-1432.058852,0.00021643,2]
[368293093,1751095855724,-1432.058852,0.00021643,2]
[368293094,1751095855734,-151.0,0.00021643,2]
[368293095,1751095855744,-151.0,0.00021643,2]
[368293096,1751095855754,-252.339413,0.00021643,2]
[368293097,1751095855763,-252.339413,0.00021643,2]
[368293098,1751095855773,-797.78,0.00021643,2]
[368293099,1751095855783,-879.38,0.00021643,2]
[368293100,1751095855792,-251.333474,0.00021643,2]
[368293101,1751095855802,-251.333474,0.00021643,2]
[368293102,1751095855811,-460.0,0.00021643,2]
[368293103,1751095855822,-828.22,0.00021643,2]
[368293104,1751095855831,-1728.86,0.00021643,2]
[368293105,1751095855841,-283.97372,0.00021643,2]
[368293106,1751095855851,-283.97372,0.00021643,2]
[368293107,1751095855861,-460.0,0.00021643,2]
[368293108,1751095855871,-597.64,0.00021643,2]
[368293109,1751095855880,-460.0,0.00021643,2]
[368293110,1751095855890,-2614.1,0.00021643,2]
[368293111,1751095855899,-653.742723,0.00021643,2]
[368293112,1751095855908,-639.64,0.00021643,2]
[368293113,1751095855917,-653.742723,0.00021643,2]
[368293114,1751095855927,-460.0,0.00021643,2]
[368293115,1751095855936,-3270.51,0.00021643,2]
[368293116,1751095855946,-837.56,0.00021643,2]
[368293117,1751095855955,-763.98,0.00021643,2]
[368293118,1751095855964,-465.7225414,0.00021643,2]
[368293119,1751095855974,-460.0,0.00021643,2]
[368293120,1751095855984,-151.0,0.00021643,2]
[368293121,1751095855994,-460.0,0.00021643,2]
[368293122,1751095856003,-460.0,0.00021643,2]
[368293123,1751095856013,-1769.95,0.00021643,2]
[368293124,1751095856022,-489.73,0.00021643,2]
[368293125,1751095856034,-621.53,0.00021643,2]
[368293126,1751095856043,-151.0,0.00021643,2]
[368293127,1751095856053,-460.0,0.00021643,2]
[368293128,1751095856063,-151.0,0.00021643,2]
[368293129,1751095856072,-460.0,0.00021643,2]
[368293130,1751095856214,-2448.04,0.00021643,2]
[368293131,1751095856226,-460.0,0.00021643,2]
[368293132,1751095856235,-610.74,0.00021643,2]
[368293133,1751095856246,-460.0,0.00021643,2]
[368293134,1751095856255,-151.0,0.00021643,2]
[368293135,1751095856266,-1113.91,0.00021643,2]
[368293136,1751095856275,-2572.05,0.00021643,2]
[368293137,1751095856285,-551.12,0.00021643,2]
[368293138,1751095856295,-2857.57,0.00021643,2]
[368293139,1751095856304,-1213.77,0.00021643,2]
[368293140,1751095856313,-3407.39,0.00021643,2]
[368293141,1751095856323,-460.0,0.00021643,2]
[368293142,1751095856333,-489.27,0.00021643,2]
[368293143,1751095856343,-460.0,0.00021643,2]
[368293144,1751095856353,-619.01,0.00021643,2]
[368293145,1751095856362,-538.85,0.00021643,2]
[368293146,1751095856372,-460.0,0.00021643,2]
[368293147,1751095856383,-1857.21,0.00021643,2]
[368293148,1751095856393,-460.0,0.00021643,2]
[368293149,1751095856402,-2083.66,0.00021643,2]
[368293150,1751095856411,-561.07,0.00021643,2]
[368293151,1751095856421,-460.0,0.00021643,2]
[368293152,1751095856430,-889.36,0.00021643,2]
[368293153,1751095856440,-1671.16,0.00021643,2]
[368293154,1751095856449,-4251.24,0.00021643,2]
[368293155,1751095856459,-460.0,0.00021643,2]
[368293156,1751095856468,-460.0,0.00021643,2]
[368293157,1751095856478,-494.68,0.00021643,2]
[368293158,1751095856488,-460.0,0.00021643,2]
[368293159,1751095856497,-460.0,0.00021643,2]
[368293160,1751095856507,-2148.79,0.00021643,2]
[368293161,1751095856517,-555.43,0.00021643,2]
[368293162,1751095856526,-1792.02,0.00021643,2]
[368293163,1751095856536,-976.63,0.00021643,2]
[368293164,1751095856545,-721.4,0.00021643,2]
[368293165,1751095856555,-460.0,0.00021643,2]
[368293166,1751095856564,-591.41,0.00021643,2]
[368293167,1751095856573,-460.0,0.00021643,2]
[368293168,1751095856582,-662.78,0.00021643,2]
[368293169,1751095856592,-779.4,0.00021643,2]
[368293170,1751095856601,-5559.5,0.00021643,2]
[368293171,1751095856610,-460.0,0.00021643,2]
[368293172,1751095856620,-460.0,0.00021643,2]
[368293173,1751095856630,-507.32,0.00021643,2]
[368293174,1751095856639,-1085.26,0.00021643,2]
[368293175,1751095856649,-2062.99,0.00021643,2]
[368293176,1751095856658,-500.0,0.00021643,2]
[368293177,1751095856667,-1700.85,0.00021643,2]
[368293178,1751095856676,-159.0188729,0.00021671,2]
[368293179,1751095856686,-151.0,0.00021698,2]
[368293180,1751095856695,-3797.86,0.000217,2]
[368293181,1751095856705,-890.0,0.00021729,2]
[368293182,1751095856714,-212.9,0.00021739,4]
[368293183,1751095856724,-193.16917624,0.00021806,2]
[368293184,1751095856733,-497.23529535,0.00021806,2]
[368293185,1751095856742,-502.71747026,0.00021806,2]
[368293186,1751095856751,-1200.0,0.00021806,2]
[368293187,1751095856761,-183.46980929,0.00021806,2]
[368293188,1751095856770,-501.21778933,0.00021806,2]
[368293189,1751095856779,-1000.0,0.00021806,2]
[368293190,1751095856788,-1001.44840289,0.00021806,2]
[368293191,1751095856798,-501.49161915,0.00021806,2]
[368293192,1751095856807,-1000.0,0.00021806,2]
[368293193,1751095856816,-501.21430314,0.00021806,2]
[368293194,1751095856825,-151.0,0.00021831,2]
[368293195,1751095856835,-151.0,0.00021831,2]
[368293196,1751095856844,-9950.03549666,0.00021831,6]
[368293197,1751095856854,-5000.0,0.00021834,2]
[368293198,1751095856863,-890.0,0.00021845,2]
[368293199,1751095856873,-2500.0,0.00021885,2]
[368293200,1751095856882,-2780.28,0.000219,2]
[368293201,1751095856892,-200.0,0.0002191,3]
[368293202,1751095856901,-890.0,0.00021917,2]
[368293203,1751095856910,-270.60241605,0.00021917,2]
[368293204,1751095856920,-519.7,0.00021917,2]
[368293205,1751095856929,-460.0,0.00021917,2]
[368293206,1751095856939,-784.51,0.00021917,2]
[368293207,1751095856948,-460.0,0.00021917,2]
[368293208,1751095856957,-797.78,0.00021917,2]
[368293209,1751095856967,-879.38,0.00021917,2]
[368293210,1751095856976,-460.0,0.00021917,2]
[368293211,1751095856985,-828.22,0.00021917,2]
[368293212,1751095856994,-1728.86,0.00021917,2]
[368293213,1751095857003,-460.0,0.00021917,2]
[368293214,1751095857013,-597.64,0.00021917,2]
[368293215,1751095857022,-362.13523528,0.00021917,2]
[368293216,1751095857032,-2614.1,0.00021917,2]
[368293217,1751095857041,-639.64,0.00021917,2]
[368293218,1751095857051,-460.0,0.00021917,2]
[368293219,1751095857060,-3270.51,0.00021917,2]
[368293220,1751095857069,-837.56,0.00021917,2]
[368293221,1751095857079,-763.98,0.00021917,2]
[368293222,1751095857089,-460.0,0.00021917,2]
[368293223,1751095857099,-460.0,0.00021917,2]
[368293224,1751095857108,-1769.95,0.00021917,2]
[368293225,1751095857117,-489.73,0.00021917,2]
[368293226,1751095857127,-621.53,0.00021917,2]
[368293227,1751095857138,-460.0,0.00021917,2]
[368293228,1751095857148,-460.0,0.00021917,2]
[368293229,1751095857157,-2448.04,0.00021917,2]
[368293230,1751095857169,-460.0,0.00021917,2]
[368293231,1751095857179,-610.74,0.00021917,2]
[368293232,1751095857188,-460.0,0.00021917,2]
[368293233,1751095857199,-1113.91,0.00021917,2]
[368293234,1751095857209,-2572.05,0.00021917,2]
[368293235,1751095857219,-551.12,0.00021917,2]
[368293236,1751095857228,-2857.57,0.00021917,2]
[368293237,1751095857238,-1213.77,0.00021917,2]
[368293238,1751095857248,-3407.39,0.00021917,2]
[368293239,1751095857257,-460.0,0.00021917,2]
[368293240,1751095857267,-489.27,0.00021917,2]
[368293241,1751095857276,-460.0,0.00021917,2]
[368293242,1751095857286,-619.01,0.00021917,2]
[368293243,1751095857295,-538.85,0.00021917,2]
[368293244,1751095857305,-460.0,0.00021917,2]
[368293245,1751095857314,-1857.21,0.00021917,2]
[368293246,1751095857324,-460.0,0.00021917,2]
[368293247,1751095857333,-2083.66,0.00021917,2]
[368293248,1751095857343,-561.07,0.00021917,2]
[368293249,1751095857352,-460.0,0.00021917,2]
[368293250,1751095857362,-889.36,0.00021917,2]
[368293251,1751095857372,-1671.16,0.00021917,2]
[368293252,1751095857381,-4251.24,0.00021917,2]
[368293253,1751095857390,-460.0,0.00021917,2]
[368293254,1751095857400,-460.0,0.00021917,2]
[368293255,1751095857409,-494.68,0.00021917,2]
[368293256,1751095857419,-263.58328661,0.00021917,2]
[368293257,1751095857428,-460.0,0.00021917,2]
[368293258,1751095857438,-2148.79,0.00021917,2]
[368293259,1751095857447,-555.43,0.00021917,2]
[368293260,1751095857456,-1792.02,0.00021917,2]
[368293261,1751095857466,-976.63,0.00021917,2]
[368293262,1751095857475,-721.4,0.00021917,2]
[368293263,1751095857485,-460.0,0.00021917,2]
[368293264,1751095857495,-591.41,0.00021917,2]
[368293265,1751095857504,-460.0,0.00021917,2]
[368293266,1751095857514,-662.78,0.00021917,2]
[368293267,1751095857524,-779.4,0.00021917,2]
[368293268,1751095857533,-5559.5,0.00021917,2]
[368293269,1751095857543,-460.0,0.00021917,2]
[368293270,1751095857553,-460.0,0.00021917,2]
[368293271,1751095857562,-507.32,0.00021917,2]
[368293272,1751095857571,-1085.26,0.00021917,2]
[368293273,1751095857580,-2062.99,0.00021917,2]
[368293274,1751095857590,-1700.85,0.00021917,2]
[368293275,1751095857599,-151.0,0.00021918,2]
[368293276,1751095857608,-654.0,0.00021932,2]
[368293277,1751095857618,-2161.0,0.00021932,2]
[368293278,1751095857627,-406.0,0.00021932,2]
[368293279,1751095857636,-421.306,0.00021932,2]
[368293280,1751095857646,-212.9,0.00021976,4]
[368293281,1751095857655,-30825.76063371,0.00022,2]
[368293282,1751095857827,-5401.48577646,0.00022,2]
[368293283,1751095857949,-487.76,0.00019178,2]
[368293284,1751095857958,-382.8523134,0.00019178,2]
[368293285,1751095857971,-77.1476866,0.00019178,2]
[368293286,1751095857981,-487.76,0.00019452,2]
[368293287,1751095857991,-487.76,0.00019726,2]
[368293288,1751095858000,-487.76,0.0002,2]
[368293289,1751095858009,-487.76,0.00020273,2]
[368293290,1751095858019,-487.76,0.00020547,2]
[368293291,1751095858028,-259.443725,0.00021917,2]
[368293292,1751095858037,-1571.43718794,0.00022,2]
[368293293,1751095858049,-37832.80622017,0.00022,2]
[368293294,1751095858164,-461.07779213,0.00019178,2]
[368293295,1751095858176,-460.81610025,0.00019178,2]
[368293296,1751095858186,-460.0,0.00019178,2]
[368293297,1751095858195,-460.0,0.00019178,2]
[368293298,1751095858204,-143.10610761,0.0002,2]
[368293299,1751095858216,-399.9479,0.0002,2]
[368293300,1751095858228,-32.16371259,0.0002,2]
[368293301,1751095858237,-487.76,0.00020821,2]
[368293302,1751095858246,-8.97731123,0.00021095,2]
[368293303,1751095858259,-478.78268877,0.00021095,2]
[368293304,1751095858268,-395.07982687,0.00021369,2]
[368293305,1751095858514,-460.0,0.00019178,2]
[368293306,1751095858524,-460.0,0.00019178,2]
[368293307,1751095858533,-460.0,0.00019178,2]
[368293308,1751095858543,-177.5104021,0.0002,2]
[368293309,1751095858552,-366.1706175,0.00020575,2]
[368293310,1751095858561,-159.266168,0.00020849,2]
[368293311,1751095858571,-259.443725,0.00021107,2]
[368293312,1751095858580,-92.68017313,0.00021369,2]
[368293313,1751095858589,-487.76,0.00021643,2]
[368293314,1751095858598,-1.54863937,0.00021917,2]
[368293315,1751096096675,500.0,0.00022,30]
[368293317,1751096301059,310.094159,0.00013699,2]
[368293319,1751096628566,4212.61695462,0.000181,2]
[368293321,1751096835084,-255.0,0.00018917,2]
[368293322,1751096835106,-375.44025885,0.00019168,3]
[368293374,1751097032499,-690.15135265,0.000189,2]
[368293375,1751097032509,-393.69266516,0.00019078,2]
[368293376,1751097032518,-102.61974115,0.00019168,3]
[368293377,1751097032528,-675.17332177,0.00019168,2]
[368293378,1751097032538,-500.0,0.00019173,2]
[368293379,1751097032547,-287.1658826,0.00019173,2]
[368293380,1751097032556,-178.67757898,0.00019173,2]
[368293381,1751097032566,-1200.0,0.00019176,2]
[368293382,1751097032575,-168.0,0.00019177,2]
[368293383,1751097032584,-300.0,0.00019177,2]
[368293384,1751097032593,-211.0,0.00019177,2]
[368293385,1751097032603,-500.0,0.00019177,2]
[368293386,1751097032612,-408.95721374,0.00019177,2]
[368293387,1751097032621,-460.0,0.00019178,2]
[368293388,1751097032632,-460.0,0.00019178,2]
[368293389,1751097032642,-460.0,0.00019178,2]
[368293390,1751097032651,-169.72578938,0.00019178,2]
[368293391,1751097032663,-280.14773305,0.00019178,2]
[368293392,1751097032672,-142.14365613,0.00019178,2]
[368293426,1751097038716,-317.85634387,0.00019178,2]
[368293427,1751097038725,-460.0,0.00019178,2]
[368293428,1751097038735,-440.0,0.00019178,2]
[368293429,1751097038745,-410.0,0.00019178,2]
[368293430,1751097038754,-460.0,0.00019178,2]
[368293431,1751097038763,-530.25897205,0.00019178,2]
[368293432,1751097038773,-460.0,0.00019178,2]
[368293433,1751097038782,-460.0,0.00019178,2]
[368293434,1751097038791,-460.0,0.00019178,2]
[368293435,1751097038800,-460.0,0.00019178,2]
[368293436,1751097038810,-274.65235622,0.00019178,2]
[368293437,1751097038819,-460.0,0.00019178,2]
[368293438,1751097038828,-573.63672047,0.00019178,2]
[368293439,1751097038837,-460.0,0.00019178,2]
[368293440,1751097038846,-461.14352202,0.00019178,2]
[368293441,1751097038856,-460.0,0.00019178,2]
[368293442,1751097038865,-460.0,0.00019178,2]
[368293443,1751097038874,-460.0,0.00019178,2]
[368293444,1751097038884,-478.66959338,0.00019178,2]
[368293445,1751097038893,-462.87197347,0.00019178,2]
[368293446,1751097038902,-464.04443265,0.00019178,2]
[368293447,1751097038911,-460.0,0.00019178,2]
[368293448,1751097038920,-25.55313099,0.00019178,2]
[368293449,1751097038941,-434.44686901,0.00019178,2]
[368293450,1751097038950,-460.0,0.00019178,2]
[368293451,1751097038961,-460.0,0.00019178,2]
[368293452,1751097038970,-460.0,0.00019178,2]
[368293453,1751097038979,-230.27942763,0.00019178,2]
[368293454,1751097038989,-460.0,0.00019178,2]
[368293455,1751097038998,-460.0,0.00019178,2]
[368293456,1751097039007,-467.24063406,0.00019178,2]
[368293457,1751097039016,-460.0,0.00019178,2]
[368293458,1751097039026,-460.0,0.00019178,2]
[368293459,1751097039035,-600.00143209,0.00019178,2]
[368293461,1751097039045,-460.0,0.00019178,2]
[368293462,1751097039054,-460.0,0.00019178,2]
[368293463,1751097039064,-303.9240014,0.00019178,2]
[368293464,1751097039076,-156.0759986,0.00019178,2]
[368293465,1751097039085,-1000.0,0.00019178,2]
[368293466,1751097039095,-460.0,0.00019178,2]
[368293467,1751097039104,-460.0,0.00019178,2]
[368293468,1751097039114,-411.63573739,0.00019178,2]
[368293469,1751097039123,-500.0,0.00019178,2]
[368293470,1751097039132,-500.0,0.00019178,2]
[368293471,1751097039142,-500.0,0.00019178,2]
[368293472,1751097039151,-460.0,0.00019178,2]
[368293473,1751097039161,-460.0,0.00019178,2]
[368293474,1751097039170,-460.0,0.00019178,2]
[368293475,1751097039180,-462.31719419,0.00019178,2]
[368293476,1751097039189,-460.0,0.00019178,2]
[368293477,1751097039199,-460.0,0.00019178,2]
[368293478,1751097039208,-452.62654072,0.00019178,2]
[368293479,1751097039217,-460.0,0.00019178,2]